[Event "Titled Tuesday Blitz December 7 2021"]
[White "Sokolin, Leonid"]
[Black "Golubka, Petro"]
[WhiteFideId "2009161"]
[BlackFideId "14114224"]
[WhiteElo "2394"]
[BlackElo "2392"]
[Result "1/2-1/2"]
[Round "09"]
[TimeControl "180+1"]
[Date "2021.12.07"]
[WhiteClock "0:00:17"]
[BlackClock "0:00:53"]

1. e4 {[%clk 0:03:00]}  c5 {[%clk 0:02:39]} 2. Nf3 {[%clk 0:03:00]}  d6 {[%clk 0:02:33]} 3. Bb5+ {[%clk 0:02:59]}  Nd7 {[%clk 0:02:32]} 4. a4 {[%clk 0:02:59]}  a6 {[%clk 0:02:31]} 5. Be2 {[%clk 0:02:58]}  Ngf6 {[%clk 0:02:29]} 6. Nc3 {[%clk 0:02:58]}  e5 {[%clk 0:02:30]} 7. d3 {[%clk 0:02:57]}  Be7 {[%clk 0:02:30]} 8. Nd2 {[%clk 0:02:57]}  O-O {[%clk 0:02:30]} 9. Nc4 {[%clk 0:02:54]}  Nb6 {[%clk 0:02:29]} 10. Ne3 {[%clk 0:02:54]}  Be6 {[%clk 0:02:28]} 11. a5 {[%clk 0:02:49]}  Nc8 {[%clk 0:02:27]} 12. g4 {[%clk 0:02:44]}  b5 {[%clk 0:02:26]} 13. g5 {[%clk 0:02:37]}  Ne8 {[%clk 0:02:23]} 14. h4 {[%clk 0:02:38]}  Nc7 {[%clk 0:02:16]} 15. Bg4 {[%clk 0:02:37]}  b4 {[%clk 0:02:15]} 16. Bxe6 {[%clk 0:02:29]}  fxe6 {[%clk 0:02:16]} 17. Ne2 {[%clk 0:02:28]}  Nb5 {[%clk 0:02:17]} 18. Nc4 {[%clk 0:02:16]}  Nca7 {[%clk 0:02:15]} 19. Be3 {[%clk 0:01:47]}  Nc6 {[%clk 0:02:14]} 20. Ng3 {[%clk 0:01:47]}  d5 {[%clk 0:02:14]} 21. Nb6 {[%clk 0:01:44]}  Rb8 {[%clk 0:02:13]} 22. Qg4 {[%clk 0:01:40]}  Ncd4 {[%clk 0:02:08]} 23. O-O {[%clk 0:01:33]}  Kh8 {[%clk 0:01:59]} 24. Bxd4 {[%clk 0:01:24]}  Nxd4 {[%clk 0:01:59]} 25. Kg2 {[%clk 0:01:11]}  Rf4 {[%clk 0:01:57]} 26. Qh3 {[%clk 0:01:08]}  Nxc2 {[%clk 0:01:57]} 27. Qxe6 {[%clk 0:01:07]}  Nxa1 {[%clk 0:01:55]} 28. Nxd5 {[%clk 0:01:07]}  Nc2 {[%clk 0:01:51]} 29. Nxe7 {[%clk 0:01:06]}  Nd4 {[%clk 0:01:47]} 30. Qxe5 {[%clk 0:01:03]}  Rxh4 {[%clk 0:01:47]} 31. Nef5 {[%clk 0:00:56]}  Nxf5 {[%clk 0:01:43]} 32. exf5 {[%clk 0:00:55]}  Qe8 {[%clk 0:01:39]} 33. Qxc5 {[%clk 0:00:53]}  Rc8 {[%clk 0:01:30]} 34. Qb6 {[%clk 0:00:38]}  Qe5 {[%clk 0:01:19]} 35. Qe6 {[%clk 0:00:34]}  Qc7 {[%clk 0:01:11]} 36. f6 {[%clk 0:00:29]}  Qb7+ {[%clk 0:01:10]} 37. Ne4 {[%clk 0:00:27]}  gxf6 {[%clk 0:01:08]} 38. Qxf6+ {[%clk 0:00:24]}  Qg7 {[%clk 0:01:08]} 39. Kg3 {[%clk 0:00:20]}  Rh5 {[%clk 0:01:04]} 40. Qxg7+ {[%clk 0:00:18]}  Kxg7 {[%clk 0:01:04]} 41. f4 {[%clk 0:00:18]}  Rc2 {[%clk 0:01:03]} 42. Rf2 {[%clk 0:00:18]}  Rxf2 {[%clk 0:01:02]} 43. Nxf2 {[%clk 0:00:18]}  h6 {[%clk 0:01:02]} 44. Ne4 {[%clk 0:00:18]}  hxg5 {[%clk 0:01:01]} 45. fxg5 {[%clk 0:00:19]}  Rh1 {[%clk 0:01:01]} 46. Nc5 {[%clk 0:00:19]}  Rb1 {[%clk 0:01:01]} 47. b3 {[%clk 0:00:19]}  Kg6 {[%clk 0:01:01]} 48. Kf4 {[%clk 0:00:18]}  Rf1+ {[%clk 0:01:00]} 49. Ke4 {[%clk 0:00:18]}  Rf5 {[%clk 0:00:58]} 50. d4 {[%clk 0:00:17]}  Kxg5 {[%clk 0:00:58]} 51. d5 {[%clk 0:00:17]}  Rf1 {[%clk 0:00:54]} 52. Nxa6 {[%clk 0:00:17]}  Ra1 {[%clk 0:00:54]} 53. Nxb4 {[%clk 0:00:17]}  Rxa5 {[%clk 0:00:54]} 54. Ke5 {[%clk 0:00:17]}  Rb5 {[%clk 0:00:55]} 55. Nc6 {[%clk 0:00:17]}  Rxb3 {[%clk 0:00:55]} 56. d6 {[%clk 0:00:17]}  Rb5+ {[%clk 0:00:53]} 57. Ke6 {[%clk 0:00:17]}  Rb6 {[%clk 0:00:53]} 58. Kd5 {[%clk 0:00:16]}  Rb5+ {[%clk 0:00:52]} 59. Ke6 {[%clk 0:00:16]}  Rb6 {[%clk 0:00:52]} 60. Kd5 {[%clk 0:00:16]}  Rb5+ {[%clk 0:00:53]} 61. Ke6 {[%clk 0:00:17]} 1/2-1/2


[Site "https://www.chess.com"]

[Event "Titled Tuesday Blitz December 7 2021"]
[White "Solon, Nathan"]
[Black "Zhuravleva, Olga"]
[WhiteFideId "2017229"]
[BlackFideId "4145933"]
[WhiteElo "2554"]
[BlackElo "2119"]
[Result "1/2-1/2"]
[Round "09"]
[TimeControl "180+1"]
[Date "2021.12.07"]
[WhiteClock "0:00:27"]
[BlackClock "0:00:17"]

1. d4 {[%clk 0:02:44]}  Nf6 {[%clk 0:02:59]} 2. c4 {[%clk 0:02:44]}  e6 {[%clk 0:02:58]} 3. g3 {[%clk 0:02:44]}  Be7 {[%clk 0:02:54]} 4. Bg2 {[%clk 0:02:44]}  O-O {[%clk 0:02:55]} 5. Nf3 {[%clk 0:02:44]}  d6 {[%clk 0:02:54]} 6. O-O {[%clk 0:02:43]}  Nbd7 {[%clk 0:02:55]} 7. Nc3 {[%clk 0:02:43]}  c5 {[%clk 0:02:55]} 8. d5 {[%clk 0:02:34]}  e5 {[%clk 0:02:51]} 9. a3 {[%clk 0:02:31]}  Re8 {[%clk 0:02:47]} 10. b4 {[%clk 0:02:30]}  b6 {[%clk 0:02:48]} 11. e4 {[%clk 0:02:23]}  a6 {[%clk 0:02:44]} 12. h3 {[%clk 0:02:23]}  Qc7 {[%clk 0:02:40]} 13. Qb3 {[%clk 0:02:11]}  Bf8 {[%clk 0:02:37]} 14. Be3 {[%clk 0:02:11]}  g6 {[%clk 0:02:33]} 15. Nd2 {[%clk 0:02:11]}  Nh5 {[%clk 0:02:27]} 16. Qc2 {[%clk 0:01:48]}  Bg7 {[%clk 0:02:26]} 17. Na4 {[%clk 0:01:39]}  cxb4 {[%clk 0:02:15]} 18. axb4 {[%clk 0:01:39]}  b5 {[%clk 0:02:15]} 19. Nc3 {[%clk 0:01:32]}  bxc4 {[%clk 0:02:12]} 20. Rfb1 {[%clk 0:01:23]}  Rb8 {[%clk 0:02:11]} 21. Bf1 {[%clk 0:01:21]}  Nb6 {[%clk 0:01:41]} 22. Na4 {[%clk 0:01:21]}  Nxa4 {[%clk 0:01:36]} 23. Rxa4 {[%clk 0:01:22]}  Bd7 {[%clk 0:01:09]} 24. Rxa6 {[%clk 0:01:20]}  Bb5 {[%clk 0:01:09]} 25. Ra7 {[%clk 0:01:19]}  Rb7 {[%clk 0:00:53]} 26. Rba1 {[%clk 0:01:19]}  Rc8 {[%clk 0:00:49]} 27. Nb1 {[%clk 0:01:10]}  Rxa7 {[%clk 0:00:34]} 28. Rxa7 {[%clk 0:01:11]}  Qb8 {[%clk 0:00:34]} 29. Nc3 {[%clk 0:01:10]}  Be8 {[%clk 0:00:25]} 30. Qb1 {[%clk 0:01:10]}  Bh6 {[%clk 0:00:21]} 31. Qe1 {[%clk 0:00:33]}  Bxe3 {[%clk 0:00:20]} 32. Qxe3 {[%clk 0:00:34]}  Qxb4 {[%clk 0:00:20]} 33. h4 {[%clk 0:00:29]}  Nf6 {[%clk 0:00:19]} 34. Bh3 {[%clk 0:00:29]}  Rb8 {[%clk 0:00:18]} 35. Kh2 {[%clk 0:00:28]}  h5 {[%clk 0:00:17]} 36. Rc7 {[%clk 0:00:28]}  Rb7 {[%clk 0:00:16]} 37. Rc8 {[%clk 0:00:28]}  Rb8 {[%clk 0:00:16]} 38. Rc7 {[%clk 0:00:28]}  Rb7 {[%clk 0:00:17]} 39. Rc8 {[%clk 0:00:27]}  Rb8 {[%clk 0:00:17]} 40. Rc7 {[%clk 0:00:27]} 1/2-1/2


[Site "https://www.chess.com"]

[Event "Titled Tuesday Blitz December 7 2021"]
[White "Stepanencu, Nicodim-Cosmin"]
[Black "Gevorgyan, Maria"]
[WhiteFideId "1256220"]
[BlackFideId "13300270"]
[WhiteElo "1704"]
[BlackElo "2210"]
[Result "0-1"]
[Round "09"]
[TimeControl "180+1"]
[Date "2021.12.07"]
[WhiteClock "0:00:01"]
[BlackClock "0:00:33"]

1. e4 {[%clk 0:03:00]}  c5 {[%clk 0:02:58]} 2. Nf3 {[%clk 0:03:00]}  Nc6 {[%clk 0:02:57]} 3. b3 {[%clk 0:02:58]}  g6 {[%clk 0:02:55]} 4. Bb2 {[%clk 0:02:58]}  Nf6 {[%clk 0:02:53]} 5. e5 {[%clk 0:02:57]}  Nd5 {[%clk 0:02:53]} 6. e6 {[%clk 0:02:49]}  f6 {[%clk 0:02:49]} 7. exd7+ {[%clk 0:02:45]}  Bxd7 {[%clk 0:02:49]} 8. Bc4 {[%clk 0:02:44]}  Nb6 {[%clk 0:02:45]} 9. Bd3 {[%clk 0:02:40]}  Bg7 {[%clk 0:02:44]} 10. O-O {[%clk 0:02:38]}  O-O {[%clk 0:02:37]} 11. Re1 {[%clk 0:02:37]}  e5 {[%clk 0:02:37]} 12. a4 {[%clk 0:02:33]}  a5 {[%clk 0:02:32]} 13. Na3 {[%clk 0:02:29]}  Nd5 {[%clk 0:02:29]} 14. Bc4 {[%clk 0:02:24]}  Be6 {[%clk 0:02:29]} 15. c3 {[%clk 0:02:23]}  Bf7 {[%clk 0:02:27]} 16. d4 {[%clk 0:02:21]}  cxd4 {[%clk 0:02:22]} 17. cxd4 {[%clk 0:02:22]}  exd4 {[%clk 0:02:22]} 18. Nxd4 {[%clk 0:02:21]}  Nxd4 {[%clk 0:02:22]} 19. Bxd4 {[%clk 0:02:20]}  Nf4 {[%clk 0:02:20]} 20. Re4 {[%clk 0:02:00]}  g5 {[%clk 0:02:08]} 21. Bc5 {[%clk 0:01:47]}  Qxd1+ {[%clk 0:02:01]} 22. Rxd1 {[%clk 0:01:47]}  Rfd8 {[%clk 0:01:59]} 23. Rde1 {[%clk 0:01:47]}  Bxc4 {[%clk 0:01:52]} 24. Rxc4 {[%clk 0:01:46]}  Rd7 {[%clk 0:01:46]} 25. Bb6 {[%clk 0:01:35]}  Nd3 {[%clk 0:01:31]} 26. Rd1 {[%clk 0:01:24]}  f5 {[%clk 0:01:26]} 27. Nb5 {[%clk 0:01:11]}  Re8 {[%clk 0:01:23]} 28. Kf1 {[%clk 0:01:00]}  Rde7 {[%clk 0:01:18]} 29. g3 {[%clk 0:00:55]}  Nb2 {[%clk 0:01:17]} 30. Rd5 {[%clk 0:00:42]}  Nxc4 {[%clk 0:01:15]} 31. bxc4 {[%clk 0:00:43]}  f4 {[%clk 0:01:15]} 32. Kg2 {[%clk 0:00:38]}  fxg3 {[%clk 0:01:14]} 33. hxg3 {[%clk 0:00:37]}  h6 {[%clk 0:01:15]} 34. Nd6 {[%clk 0:00:35]}  Rf8 {[%clk 0:01:13]} 35. Rxa5 {[%clk 0:00:27]}  Re6 {[%clk 0:01:10]} 36. Rd5 {[%clk 0:00:26]}  Rff6 {[%clk 0:01:07]} 37. c5 {[%clk 0:00:26]}  Re2 {[%clk 0:01:06]} 38. Nf5 {[%clk 0:00:22]}  Bf8 {[%clk 0:01:00]} 39. Bd8 {[%clk 0:00:21]}  Ra6 {[%clk 0:00:53]} 40. a5 {[%clk 0:00:21]}  Rae6 {[%clk 0:00:53]} 41. Bc7 {[%clk 0:00:19]}  Rc2 {[%clk 0:00:49]} 42. Bd6 {[%clk 0:00:18]}  Ra2 {[%clk 0:00:46]} 43. Nd4 {[%clk 0:00:14]}  Rf6 {[%clk 0:00:45]} 44. Bc7 {[%clk 0:00:12]}  Rfxf2+ {[%clk 0:00:41]} 45. Kh3 {[%clk 0:00:12]}  Rf7 {[%clk 0:00:39]} 46. Ne6 {[%clk 0:00:11]}  Re2 {[%clk 0:00:37]} 47. Nxf8 {[%clk 0:00:09]}  Rxc7 {[%clk 0:00:37]} 48. Ne6 {[%clk 0:00:06]}  Rxe6 {[%clk 0:00:35]} 49. Kg4 {[%clk 0:00:03]}  Rec6 {[%clk 0:00:33]} 50. Kh5 {[%clk 0:00:02]}  Rxc5 {[%clk 0:00:34]} 51. Rd8+ {[%clk 0:00:03]}  Kg7 {[%clk 0:00:33]} 52. Rb8 {[%clk 0:00:01]}  Rxa5 {[%clk 0:00:33]} 53. g4 {[%clk 0:00:01]}  Ra1 {[%clk 0:00:33]} 54. Rxb7 {[%clk 0:00:01]} 0-1


[Site "https://www.chess.com"]

[Event "Titled Tuesday Blitz December 7 2021"]
[White "Tasev, Dejan"]
[Black "Terletsky, Oleg"]
[WhiteFideId "936618"]
[BlackFideId "14116774"]
[WhiteElo "2253"]
[BlackElo "2055"]
[Result "1-0"]
[Round "09"]
[TimeControl "180+1"]
[Date "2021.12.07"]
[WhiteClock "0:00:09"]
[BlackClock "0:00:01"]

1. e4 {[%clk 0:02:57]}  e5 {[%clk 0:02:59]} 2. Nf3 {[%clk 0:02:57]}  Nc6 {[%clk 0:02:59]} 3. Bc4 {[%clk 0:02:56]}  Nf6 {[%clk 0:02:59]} 4. d3 {[%clk 0:02:56]}  h6 {[%clk 0:02:58]} 5. Nc3 {[%clk 0:02:56]}  d6 {[%clk 0:02:58]} 6. Bb3 {[%clk 0:02:56]}  Na5 {[%clk 0:02:57]} 7. h3 {[%clk 0:02:56]}  Nxb3 {[%clk 0:02:56]} 8. axb3 {[%clk 0:02:56]}  c5 {[%clk 0:02:56]} 9. O-O {[%clk 0:02:53]}  g6 {[%clk 0:02:56]} 10. Be3 {[%clk 0:02:51]}  Bg7 {[%clk 0:02:54]} 11. Nd2 {[%clk 0:02:51]}  O-O {[%clk 0:02:39]} 12. f4 {[%clk 0:02:50]}  exf4 {[%clk 0:02:38]} 13. Bxf4 {[%clk 0:02:47]}  Nh5 {[%clk 0:02:38]} 14. Be3 {[%clk 0:02:40]}  Qh4 {[%clk 0:02:21]} 15. Nf3 {[%clk 0:02:32]}  Qd8 {[%clk 0:02:06]} 16. Qd2 {[%clk 0:02:30]}  Kh7 {[%clk 0:02:05]} 17. g4 {[%clk 0:02:22]}  Nf6 {[%clk 0:02:02]} 18. Rf2 {[%clk 0:02:19]}  b6 {[%clk 0:01:51]} 19. Raf1 {[%clk 0:02:16]}  d5 {[%clk 0:01:51]} 20. e5 {[%clk 0:02:06]}  Nxg4 {[%clk 0:01:43]} 21. hxg4 {[%clk 0:02:04]}  d4 {[%clk 0:01:43]} 22. Rg2 {[%clk 0:02:01]}  dxc3 {[%clk 0:01:31]} 23. bxc3 {[%clk 0:01:55]}  Bb7 {[%clk 0:01:30]} 24. d4 {[%clk 0:01:50]}  cxd4 {[%clk 0:01:28]} 25. cxd4 {[%clk 0:01:49]}  b5 {[%clk 0:01:20]} 26. Rh2 {[%clk 0:01:44]}  Qd7 {[%clk 0:01:11]} 27. Qg2 {[%clk 0:01:20]}  Kg8 {[%clk 0:00:48]} 28. c3 {[%clk 0:01:10]}  Rac8 {[%clk 0:00:43]} 29. Bxh6 {[%clk 0:00:50]}  Bxh6 {[%clk 0:00:40]} 30. Rxh6 {[%clk 0:00:50]}  Kg7 {[%clk 0:00:35]} 31. g5 {[%clk 0:00:29]}  Rxc3 {[%clk 0:00:25]} 32. Rf2 {[%clk 0:00:21]}  Rc1+ {[%clk 0:00:20]} 33. Kh2 {[%clk 0:00:20]}  Bxf3 {[%clk 0:00:14]} 34. Rxf3 {[%clk 0:00:19]}  Qxd4 {[%clk 0:00:13]} 35. Rfh3 {[%clk 0:00:13]}  Qf4+ {[%clk 0:00:10]} 36. Qg3 {[%clk 0:00:13]}  Rc2+ {[%clk 0:00:10]} 37. Kh1 {[%clk 0:00:14]}  Qe4+ {[%clk 0:00:07]} 38. Kg1 {[%clk 0:00:13]}  Qd4+ {[%clk 0:00:06]} 39. Kf1 {[%clk 0:00:12]}  Qd1+ {[%clk 0:00:03]} 40. Qe1 {[%clk 0:00:12]}  Qxe1+ {[%clk 0:00:02]} 41. Kxe1 {[%clk 0:00:12]}  Rg8 {[%clk 0:00:01]} 42. Rh7+ {[%clk 0:00:12]}  Kf8 {[%clk 0:00:02]} 43. Rf3 {[%clk 0:00:13]}  Rg7 {[%clk 0:00:02]} 44. Rh8+ {[%clk 0:00:13]}  Ke7 {[%clk 0:00:02]} 45. Rb8 {[%clk 0:00:13]}  Rh7 {[%clk 0:00:02]} 46. Rb7+ {[%clk 0:00:12]}  Ke6 {[%clk 0:00:02]} 47. Rf6+ {[%clk 0:00:12]}  Kxe5 {[%clk 0:00:02]} 48. Re7+ {[%clk 0:00:13]}  Kd4 {[%clk 0:00:01]} 49. Rd6+ {[%clk 0:00:12]}  Kc5 {[%clk 0:00:01]} 50. Rf6 {[%clk 0:00:09]} 1-0


[Site "https://www.chess.com"]

[Event "Titled Tuesday Blitz December 7 2021"]
[White "Todorovic, Bojan"]
[Black "Gunduz, Umut Erdem"]
[WhiteFideId "917087"]
[BlackFideId "6381383"]
[WhiteElo "2266"]
[BlackElo "2096"]
[Result "0-1"]
[Round "09"]
[TimeControl "180+1"]
[Date "2021.12.07"]
[WhiteClock "0:00:18"]
[BlackClock "0:01:09"]

1. d4 {[%clk 0:02:57]}  Nf6 {[%clk 0:02:57]} 2. c4 {[%clk 0:02:57]}  c5 {[%clk 0:02:57]} 3. d5 {[%clk 0:02:56]}  e6 {[%clk 0:02:57]} 4. Nc3 {[%clk 0:02:55]}  exd5 {[%clk 0:02:58]} 5. cxd5 {[%clk 0:02:55]}  d6 {[%clk 0:02:58]} 6. Nf3 {[%clk 0:02:54]}  g6 {[%clk 0:02:59]} 7. Nd2 {[%clk 0:02:54]}  Bg7 {[%clk 0:02:59]} 8. Nc4 {[%clk 0:02:54]}  O-O {[%clk 0:02:53]} 9. Bf4 {[%clk 0:02:54]}  Ne8 {[%clk 0:02:44]} 10. Qd2 {[%clk 0:02:53]}  a6 {[%clk 0:02:43]} 11. a4 {[%clk 0:02:52]}  Qc7 {[%clk 0:02:39]} 12. Ne4 {[%clk 0:02:14]}  Nd7 {[%clk 0:02:27]} 13. Nexd6 {[%clk 0:02:11]}  Qd8 {[%clk 0:02:10]} 14. Nxc8 {[%clk 0:01:51]}  Rxc8 {[%clk 0:02:07]} 15. e3 {[%clk 0:01:48]}  b5 {[%clk 0:02:06]} 16. axb5 {[%clk 0:01:39]}  axb5 {[%clk 0:02:07]} 17. Na3 {[%clk 0:01:35]}  c4 {[%clk 0:01:54]} 18. Be2 {[%clk 0:01:24]}  c3 {[%clk 0:01:53]} 19. Qd3 {[%clk 0:01:10]}  cxb2 {[%clk 0:01:51]} 20. Rb1 {[%clk 0:01:09]}  Rc1+ {[%clk 0:01:51]} 21. Bd1 {[%clk 0:01:07]}  Qa5+ {[%clk 0:01:39]} 22. Ke2 {[%clk 0:01:06]}  Rc3 {[%clk 0:01:40]} 23. Qxb5 {[%clk 0:00:50]}  Rxa3 {[%clk 0:01:39]} 24. Qxd7 {[%clk 0:00:49]}  Nf6 {[%clk 0:01:35]} 25. Qc6 {[%clk 0:00:45]}  Nxd5 {[%clk 0:01:35]} 26. Bd6 {[%clk 0:00:21]}  Nc3+ {[%clk 0:01:31]} 27. Kf3 {[%clk 0:00:21]}  Nxb1 {[%clk 0:01:25]} 28. Bc2 {[%clk 0:00:19]}  Rc3 {[%clk 0:01:10]} 29. Qe4 {[%clk 0:00:18]}  Nd2+ {[%clk 0:01:09]} 0-1


[Site "https://www.chess.com"]

[Event "Titled Tuesday Blitz December 7 2021"]
[White "Tologon tegin, Semetei"]
[Black "Samadov, Read"]
[WhiteFideId "13800574"]
[BlackFideId "13417444"]
[WhiteElo "2224"]
[BlackElo "2084"]
[Result "0-1"]
[Round "09"]
[TimeControl "180+1"]
[Date "2021.12.07"]
[WhiteClock "0:00:03"]
[BlackClock "0:00:31"]

1. d4 {[%clk 0:03:00]}  Nf6 {[%clk 0:03:00]} 2. Nc3 {[%clk 0:03:01]}  d5 {[%clk 0:02:58]} 3. Bf4 {[%clk 0:02:59]}  c5 {[%clk 0:02:52]} 4. e3 {[%clk 0:02:58]}  cxd4 {[%clk 0:02:51]} 5. exd4 {[%clk 0:02:57]}  a6 {[%clk 0:02:51]} 6. h3 {[%clk 0:02:50]}  Nc6 {[%clk 0:02:51]} 7. Nf3 {[%clk 0:02:49]}  Bf5 {[%clk 0:02:49]} 8. a3 {[%clk 0:02:47]}  e6 {[%clk 0:02:48]} 9. Bd3 {[%clk 0:02:47]}  Bxd3 {[%clk 0:02:46]} 10. Qxd3 {[%clk 0:02:48]}  Bd6 {[%clk 0:02:42]} 11. Bg5 {[%clk 0:02:46]}  h6 {[%clk 0:02:39]} 12. Bd2 {[%clk 0:02:35]}  O-O {[%clk 0:02:38]} 13. O-O {[%clk 0:02:33]}  Rc8 {[%clk 0:02:32]} 14. Rae1 {[%clk 0:02:33]}  Na5 {[%clk 0:02:23]} 15. Ne5 {[%clk 0:02:31]}  Nc4 {[%clk 0:02:20]} 16. Nxc4 {[%clk 0:02:18]}  Rxc4 {[%clk 0:02:20]} 17. Ne2 {[%clk 0:01:54]}  Ne4 {[%clk 0:02:11]} 18. Bc1 {[%clk 0:01:53]}  Qc7 {[%clk 0:02:06]} 19. c3 {[%clk 0:01:50]}  b5 {[%clk 0:02:02]} 20. f3 {[%clk 0:01:38]}  Nf6 {[%clk 0:02:00]} 21. g4 {[%clk 0:01:28]}  Rc8 {[%clk 0:01:53]} 22. f4 {[%clk 0:00:56]}  Ne4 {[%clk 0:01:51]} 23. Ng3 {[%clk 0:00:55]}  Nxc3 {[%clk 0:01:48]} 24. Bd2 {[%clk 0:00:26]}  Na4 {[%clk 0:01:27]} 25. b3 {[%clk 0:00:24]}  Rxd4 {[%clk 0:01:24]} 26. Qxd4 {[%clk 0:00:17]}  Bc5 {[%clk 0:01:24]} 27. Be3 {[%clk 0:00:18]}  Bxd4 {[%clk 0:01:22]} 28. Bxd4 {[%clk 0:00:19]}  Nb6 {[%clk 0:01:13]} 29. Nh5 {[%clk 0:00:17]}  Nd7 {[%clk 0:00:57]} 30. Nxg7 {[%clk 0:00:12]}  Qc2 {[%clk 0:00:46]} 31. Nh5 {[%clk 0:00:09]}  Qd3 {[%clk 0:00:46]} 32. Be3 {[%clk 0:00:09]}  Rc2 {[%clk 0:00:44]} 33. Rf2 {[%clk 0:00:08]}  Rxf2 {[%clk 0:00:44]} 34. Kxf2 {[%clk 0:00:09]}  d4 {[%clk 0:00:43]} 35. Bc1 {[%clk 0:00:08]}  Qxh3 {[%clk 0:00:44]} 36. Ng3 {[%clk 0:00:07]}  Qxg4 {[%clk 0:00:37]} 37. Rg1 {[%clk 0:00:07]}  Kf8 {[%clk 0:00:37]} 38. Ne4 {[%clk 0:00:06]}  Qh4+ {[%clk 0:00:37]} 39. Kf1 {[%clk 0:00:06]}  Qh3+ {[%clk 0:00:37]} 40. Kf2 {[%clk 0:00:05]}  f5 {[%clk 0:00:37]} 41. Nd6 {[%clk 0:00:04]}  Qc3 {[%clk 0:00:33]} 42. a4 {[%clk 0:00:03]}  b4 {[%clk 0:00:31]} 0-1


[Site "https://www.chess.com"]

[Event "Titled Tuesday Blitz December 7 2021"]
[White "Vifleemskaia, Svetlana"]
[Black "Demin, Vladimir"]
[WhiteFideId "4129490"]
[BlackFideId "4167457"]
[WhiteElo "1918"]
[BlackElo "2495"]
[Result "0-1"]
[Round "09"]
[TimeControl "180+1"]
[Date "2021.12.07"]
[WhiteClock "0:00:02"]
[BlackClock "0:00:35"]

1. d4 {[%clk 0:03:00]}  Nf6 {[%clk 0:02:56]} 2. c4 {[%clk 0:02:57]}  e5 {[%clk 0:02:53]} 3. dxe5 {[%clk 0:02:57]}  Ng4 {[%clk 0:02:52]} 4. Bf4 {[%clk 0:02:55]}  Bb4+ {[%clk 0:02:48]} 5. Nd2 {[%clk 0:02:53]}  d6 {[%clk 0:02:46]} 6. Nf3 {[%clk 0:02:45]}  Nc6 {[%clk 0:02:42]} 7. exd6 {[%clk 0:02:42]}  Qf6 {[%clk 0:02:41]} 8. a3 {[%clk 0:02:30]}  Bc5 {[%clk 0:01:55]} 9. e3 {[%clk 0:02:21]}  Qxb2 {[%clk 0:01:55]} 10. Qc1 {[%clk 0:02:13]}  Qxc1+ {[%clk 0:01:54]} 11. Rxc1 {[%clk 0:02:12]}  Bxa3 {[%clk 0:01:55]} 12. Rd1 {[%clk 0:02:02]}  Bxd6 {[%clk 0:01:53]} 13. Bxd6 {[%clk 0:02:00]}  cxd6 {[%clk 0:01:54]} 14. Ne4 {[%clk 0:02:00]}  Ke7 {[%clk 0:01:36]} 15. Rxd6 {[%clk 0:01:44]}  Bf5 {[%clk 0:01:29]} 16. Nfd2 {[%clk 0:01:38]}  Nf6 {[%clk 0:01:24]} 17. Nxf6 {[%clk 0:01:12]}  Kxd6 {[%clk 0:01:22]} 18. Nd5 {[%clk 0:01:11]}  a5 {[%clk 0:01:18]} 19. e4 {[%clk 0:01:10]}  Be6 {[%clk 0:01:15]} 20. f4 {[%clk 0:01:07]}  a4 {[%clk 0:01:11]} 21. Bd3 {[%clk 0:01:02]}  Bxd5 {[%clk 0:01:07]} 22. cxd5 {[%clk 0:00:58]}  Nb4 {[%clk 0:01:07]} 23. Bc4 {[%clk 0:00:50]}  a3 {[%clk 0:00:59]} 24. Ke2 {[%clk 0:00:48]}  Rhc8 {[%clk 0:00:58]} 25. Bb3 {[%clk 0:00:44]}  Rc3 {[%clk 0:00:56]} 26. Ra1 {[%clk 0:00:35]}  a2 {[%clk 0:00:54]} 27. e5+ {[%clk 0:00:23]}  Kd7 {[%clk 0:00:53]} 28. Ne4 {[%clk 0:00:20]}  Rxb3 {[%clk 0:00:46]} 29. Nc5+ {[%clk 0:00:19]}  Kd8 {[%clk 0:00:45]} 30. Nxb3 {[%clk 0:00:20]}  Nc2 {[%clk 0:00:45]} 31. Kd3 {[%clk 0:00:19]}  Nxa1 {[%clk 0:00:44]} 32. Nxa1 {[%clk 0:00:20]}  Ra3+ {[%clk 0:00:42]} 33. Kc2 {[%clk 0:00:19]}  b5 {[%clk 0:00:38]} 34. Kb2 {[%clk 0:00:17]}  b4 {[%clk 0:00:38]} 35. Nc2 {[%clk 0:00:13]}  Rc3 {[%clk 0:00:38]} 36. Nxb4 {[%clk 0:00:11]}  Rb3+ {[%clk 0:00:38]} 37. Kxb3 {[%clk 0:00:09]}  a1=Q {[%clk 0:00:38]} 38. Kc4 {[%clk 0:00:09]}  Qb2 {[%clk 0:00:37]} 39. e6 {[%clk 0:00:06]}  fxe6 {[%clk 0:00:36]} 40. dxe6 {[%clk 0:00:04]}  Ke7 {[%clk 0:00:37]} 41. f5 {[%clk 0:00:02]}  Qe2+ {[%clk 0:00:35]} 0-1


[Site "https://www.chess.com"]

[Event "Titled Tuesday Blitz December 7 2021"]
[White "Wadsworth, Matthew J"]
[Black "Khanin, Semen"]
[WhiteFideId "415804"]
[BlackFideId "4111990"]
[WhiteElo "2293"]
[BlackElo "2442"]
[Result "0-1"]
[Round "09"]
[TimeControl "180+1"]
[Date "2021.12.07"]
[WhiteClock "0:00:03"]
[BlackClock "0:01:35"]

1. c4 {[%clk 0:03:00]}  g6 {[%clk 0:02:57]} 2. g3 {[%clk 0:03:01]}  Bg7 {[%clk 0:02:58]} 3. Bg2 {[%clk 0:03:01]}  c5 {[%clk 0:02:58]} 4. Nc3 {[%clk 0:03:01]}  Nc6 {[%clk 0:02:59]} 5. Nf3 {[%clk 0:03:00]}  d6 {[%clk 0:02:58]} 6. O-O {[%clk 0:02:59]}  e5 {[%clk 0:02:57]} 7. a3 {[%clk 0:02:57]}  Nge7 {[%clk 0:02:57]} 8. b4 {[%clk 0:02:57]}  O-O {[%clk 0:02:57]} 9. Rb1 {[%clk 0:02:53]}  Rb8 {[%clk 0:02:55]} 10. d3 {[%clk 0:02:49]}  b6 {[%clk 0:02:55]} 11. Ne1 {[%clk 0:02:45]}  h6 {[%clk 0:02:53]} 12. Nc2 {[%clk 0:02:45]}  f5 {[%clk 0:02:53]} 13. Ne3 {[%clk 0:02:45]}  f4 {[%clk 0:02:51]} 14. Ned5 {[%clk 0:02:45]}  Nd4 {[%clk 0:02:47]} 15. e3 {[%clk 0:02:23]}  f3 {[%clk 0:02:46]} 16. Nxe7+ {[%clk 0:02:19]}  Qxe7 {[%clk 0:02:45]} 17. Bh1 {[%clk 0:02:20]}  Bh3 {[%clk 0:02:27]} 18. Re1 {[%clk 0:01:49]}  Ne6 {[%clk 0:02:24]} 19. Nd5 {[%clk 0:01:12]}  Qf7 {[%clk 0:02:20]} 20. e4 {[%clk 0:01:08]}  Nd4 {[%clk 0:02:19]} 21. Be3 {[%clk 0:01:07]}  h5 {[%clk 0:02:08]} 22. Bxd4 {[%clk 0:01:02]}  cxd4 {[%clk 0:02:08]} 23. Qd2 {[%clk 0:00:56]}  Kh7 {[%clk 0:02:02]} 24. b5 {[%clk 0:00:36]}  Bh6 {[%clk 0:01:59]} 25. Qc2 {[%clk 0:00:36]}  h4 {[%clk 0:01:59]} 26. Rb2 {[%clk 0:00:36]}  hxg3 {[%clk 0:01:57]} 27. fxg3 {[%clk 0:00:34]}  g5 {[%clk 0:01:47]} 28. Qf2 {[%clk 0:00:27]}  g4 {[%clk 0:01:48]} 29. a4 {[%clk 0:00:23]}  Rbc8 {[%clk 0:01:47]} 30. Ra2 {[%clk 0:00:22]}  Rc5 {[%clk 0:01:47]} 31. a5 {[%clk 0:00:21]}  bxa5 {[%clk 0:01:37]} 32. Rb2 {[%clk 0:00:04]}  a4 {[%clk 0:01:37]} 33. Ra2 {[%clk 0:00:04]}  Rxd5 {[%clk 0:01:35]} 34. exd5 {[%clk 0:00:03]}  a3 {[%clk 0:01:35]} 0-1


[Site "https://www.chess.com"]